fUST/lending_fUST_20241107
["ID","MTS","AMOUNT","RATE_DAILY","PERIOD"]
[341514526,1730944245296,-514.71350386,0.00021917,2]
[341514527,1730944245305,-500.0,0.00021917,2]
[341514528,1730944245314,-504.9677675,0.00021917,2]
[341514529,1730944245323,-500.0,0.00021917,2]
[341514530,1730944245332,-501.65473231,0.00021917,2]
[341514531,1730944245342,-500.0,0.00021917,2]
[341514532,1730944245352,-500.0,0.00021917,2]
[341514533,1730944245361,-503.52556299,0.00021917,2]
[341514534,1730944245371,-501.48643486,0.00021917,2]
[341514535,1730944245381,-500.0,0.00021917,2]
[341514536,1730944245390,-512.23240663,0.00021917,2]
[341514537,1730944245400,-500.0,0.00021917,2]
[341514538,1730944245410,-500.0,0.00021917,2]
[341514539,1730944245420,-500.0,0.00021917,2]
[341514540,1730944245430,-501.10866035,0.00021917,2]
[341514541,1730944245440,-532.47143402,0.00021917,2]
[341514542,1730944245450,-500.0,0.00021917,2]
[341514543,1730944245460,-298.160351,0.00021917,2]
[341514544,1730944245470,-500.0,0.00021917,2]
[341514545,1730944245480,-601.80495774,0.00021917,2]
[341514546,1730944245490,-500.0,0.00021917,2]
[341514547,1730944245500,-505.90714251,0.00021917,2]
[341514548,1730944245596,-367.19934,0.00021917,2]
[341514574,1730944247202,-132.80066,0.00021917,2]
[341514576,1730944247211,-367.19934,0.00021917,2]
[341514656,1730944424681,163.599838,0.00013973,2]
[341514662,1730944617996,1169.27083333,0.0002083,2]
[341514671,1730944803021,500.0,0.0001,2]
[341514672,1730944803428,500.0,0.0001,2]
[341514673,1730944803810,500.0,0.0001,2]
[341514674,1730944805267,171.64497264,0.0001,2]
[341514675,1730944823270,257.29,0.000208,4]
[341514676,1730944871570,323.521584,0.00032578,120]
[341514677,1730944932217,188.60198529,0.000208,4]
[341514679,1730945000603,7523.78682777,0.00020802,2]
[341514680,1730945069145,750.0342802,0.0002067,2]
[341514690,1730945230366,1169.27083333,0.0002083,2]
[341514773,1730945432529,-459.38275,0.00021447,2]
[341514774,1730945432541,-1417.49509188,0.00021447,2]
[341514839,1730945443845,-5646.90898582,0.00021447,2]
[341514840,1730945443855,-1005.64881194,0.00021816,2]
[341514841,1730945443864,-300.0,0.00021816,2]
[341514842,1730945443873,-300.0,0.00021816,2]
[341514843,1730945443882,-327.3119249,0.00021817,2]
[341514844,1730945443892,-7523.7868277,0.00021853,2]
[341514845,1730945443901,-199.4398054,0.00021916,2]
[341514846,1730945443911,-254.66652143,0.00021916,2]
[341514847,1730945443920,-486.36642196,0.00021916,2]
[341514848,1730945443930,-438.51478375,0.00021917,2]
[341514849,1730945443941,-500.0,0.00021917,2]
[341514850,1730945443951,-501.67509452,0.00021917,2]
[341514851,1730945443960,-508.40198047,0.00021917,2]
[341514852,1730945443969,-500.0,0.00021917,2]
[341514853,1730945443979,-349.83311484,0.00021917,2]
[341514854,1730945443992,-513.90500959,0.00021917,2]
[341514855,1730945444002,-500.0,0.00021917,2]
[341514856,1730945444012,-159.42280722,0.00021917,2]
[341514857,1730945444021,-500.0,0.00021917,2]
[341514858,1730945444030,-504.93928666,0.00021917,2]
[341514859,1730945444040,-437.95164013,0.00021917,2]
[341514860,1730945444050,-517.69726101,0.00021917,2]
[341514861,1730945444059,-517.83304003,0.00021917,2]
[341514862,1730945444068,-500.0,0.00021917,2]
[341514863,1730945444078,-509.30596587,0.00021917,2]
[341514864,1730945444087,-560.81911924,0.00021917,2]
[341514865,1730945444097,-512.73655823,0.00021917,2]
[341514866,1730945444106,-500.0,0.00021917,2]
[341514867,1730945444116,-500.0,0.00021917,2]
[341514868,1730945444125,-500.0,0.00021917,2]
[341514869,1730945444135,-500.0,0.00021917,2]
[341514870,1730945444144,-500.0,0.00021917,2]
[341514871,1730945444153,-503.98613845,0.00021917,2]
[341514872,1730945444163,-500.53913223,0.00021917,2]
[341514873,1730945444173,-500.0,0.00021917,2]
[341514874,1730945444182,-529.12184922,0.00021917,2]
[341514875,1730945444191,-500.0,0.00021917,2]
[341514876,1730945444201,-200.0,0.00021917,2]
[341514877,1730945444210,-500.0,0.00021917,2]
[341514878,1730945444220,-500.0,0.00021917,2]
[341514879,1730945444229,-510.53607821,0.00021917,2]
[341514880,1730945444240,-523.889875,0.00021917,2]
[341514881,1730945444250,-504.82360948,0.00021917,2]
[341514882,1730945444259,-500.0,0.00021917,2]
[341514883,1730945444271,-510.60982215,0.00021917,2]
[341514884,1730945444280,-500.0,0.00021917,2]
[341514885,1730945444290,-500.0,0.00021917,2]
[341514886,1730945444302,-500.0,0.00021917,2]
[341514887,1730945444311,-500.0,0.00021917,2]
[341514888,1730945444320,-507.15022767,0.00021917,2]
[341514889,1730945444331,-500.0,0.00021917,2]
[341514890,1730945444341,-514.21820805,0.00021917,2]
[341514891,1730945444351,-510.8158639,0.00021917,2]
[341514892,1730945444361,-513.15138491,0.00021917,2]
[341514893,1730945444370,-514.46744364,0.00021917,2]
[341514894,1730945444381,-500.0,0.00021917,2]
[341514895,1730945444391,-574.16887276,0.00021917,2]
[341514896,1730945444401,-500.0,0.00021917,2]
[341514897,1730945444410,-503.31196164,0.00021917,2]
[341514898,1730945444420,-500.0,0.00021917,2]
[341514899,1730945444434,-458.42438985,0.00021917,2]
[341514900,1730945444444,-500.0,0.00021917,2]
[341514901,1730945444455,-517.87846035,0.00021917,2]
[341514902,1730945444465,-500.0,0.00021917,2]
[341514903,1730945444474,-500.0,0.00021917,2]
[341514904,1730945444485,-500.0,0.00021917,2]
[341514905,1730945444495,-500.00000001,0.00021917,2]
[341514906,1730945444504,-409.91554097,0.00021917,2]
[341514907,1730945444514,-507.0935164,0.00021917,2]
[341514908,1730945444523,-500.0,0.00021917,2]
[341514909,1730945444539,-548.78205357,0.00021917,2]
[341514910,1730945444549,-500.0,0.00021917,2]
[341514911,1730945444558,-500.0,0.00021917,2]
[341514912,1730945444567,-500.0,0.00021917,2]
[341514913,1730945444577,-500.0,0.00021917,2]
[341514914,1730945444586,-507.0224073,0.00021917,2]
[341514915,1730945444596,-507.8395935,0.00021917,2]
[341514916,1730945444606,-500.0,0.00021917,2]
[341514917,1730945444616,-500.0,0.00021917,2]
[341514918,1730945444626,-507.92234232,0.00021917,2]
[341514919,1730945444636,-500.0,0.00021917,2]
[341514920,1730945444645,-500.0,0.00021917,2]
[341514921,1730945444654,-503.39417946,0.00021917,2]
[341514922,1730945444664,-500.0,0.00021917,2]
[341514923,1730945444673,-500.0,0.00021917,2]
[341514924,1730945444682,-500.0,0.00021917,2]
[341514925,1730945444691,-500.0,0.00021917,2]
[341514926,1730945444700,-500.0,0.00021917,2]
[341514927,1730945444710,-500.0,0.00021917,2]
[341514928,1730945444719,-500.0,0.00021917,2]
[341514929,1730945444728,-500.0,0.00021917,2]
[341514930,1730945444740,-500.0,0.00021917,2]
[341514931,1730945444749,-524.9736213,0.00021917,2]
[341514932,1730945444758,-500.0,0.00021917,2]
[341514933,1730945444768,-500.0,0.00021917,2]
[341514934,1730945444778,-506.98608532,0.00021917,2]
[341514935,1730945444787,-500.0,0.00021917,2]
[341514936,1730945444796,-500.0,0.00021917,2]
[341514937,1730945444805,-500.0,0.00021917,2]
[341514938,1730945444814,-500.0,0.00021917,2]
[341514939,1730945444823,-500.0,0.00021917,2]
[341514940,1730945444833,-500.0,0.00021917,2]
[341514941,1730945444842,-500.0,0.00021917,2]
[341514942,1730945444851,-500.0,0.00021917,2]
[341514943,1730945444861,-500.0,0.00021917,2]
[341514944,1730945444871,-502.41231534,0.00021917,2]
[341514945,1730945444880,-500.0,0.00021917,2]
[341514946,1730945444889,-500.0,0.00021917,2]
[341514947,1730945444899,-500.0,0.00021917,2]
[341514948,1730945444908,-506.03880022,0.00021917,2]
[341514949,1730945444917,-500.0,0.00021917,2]
[341514950,1730945444926,-508.01376763,0.00021917,2]
[341514951,1730945444935,-500.0,0.00021917,2]
[341514952,1730945444946,-500.0,0.00021917,2]
[341514953,1730945444955,-500.0,0.00021917,2]
[341514954,1730945444965,-500.0,0.00021917,2]
[341514955,1730945444974,-500.0,0.00021917,2]
[341514956,1730945444986,-500.0,0.00021917,2]
[341514957,1730945444995,-500.0,0.00021917,2]
[341514958,1730945445005,-500.0,0.00021917,2]
[341514959,1730945445016,-500.0,0.00021917,2]
[341514960,1730945445026,-500.0,0.00021917,2]
[341514961,1730945445035,-500.0,0.00021917,2]
[341514962,1730945445045,-504.59931125,0.00021917,2]
[341514963,1730945445054,-500.0,0.00021917,2]
[341514964,1730945445145,-500.0,0.00021917,2]
[341514965,1730945445156,-500.0,0.00021917,2]
[341514966,1730945445167,-500.0,0.00021917,2]
[341514967,1730945445176,-513.30814456,0.00021917,2]
[341514968,1730945445186,-510.39089842,0.00021917,2]
[341514969,1730945445196,-500.0,0.00021917,2]
[341514970,1730945445206,-500.0,0.00021917,2]
[341514971,1730945445215,-500.0,0.00021917,2]
[341514972,1730945445225,-500.0,0.00021917,2]
[341514973,1730945445236,-500.0,0.00021917,2]
[341514974,1730945445246,-500.0,0.00021917,2]
[341514975,1730945445256,-500.0,0.00021917,2]
[341514976,1730945445268,-504.80753273,0.00021917,2]
[341514977,1730945445278,-518.72195111,0.00021917,2]
[341514978,1730945445287,-500.0,0.00021917,2]
[341514979,1730945445299,-500.0,0.00021917,2]
[341514980,1730945445309,-500.0,0.00021917,2]
[341514981,1730945445319,-500.0,0.00021917,2]
[341514982,1730945445328,-500.0,0.00021917,2]
[341514983,1730945445338,-511.72193286,0.00021917,2]
[341514984,1730945445348,-500.0,0.00021917,2]
[341514985,1730945445358,-500.0,0.00021917,2]
[341514986,1730945445367,-500.0,0.00021917,2]
[341514987,1730945445378,-504.99008416,0.00021917,2]
[341514988,1730945445387,-507.46972524,0.00021917,2]
[341514989,1730945445397,-500.0,0.00021917,2]
[341514990,1730945445407,-500.0,0.00021917,2]
[341514991,1730945445417,-500.0,0.00021917,2]
[341514992,1730945445427,-500.0,0.00021917,2]
[341514993,1730945445436,-500.0,0.00021917,2]
[341514994,1730945445446,-498.03060929,0.00021917,2]
[341514995,1730945445457,-500.0,0.00021917,2]
[341514996,1730945445467,-500.0,0.00021917,2]
[341514997,1730945445477,-500.0,0.00021917,2]
[341514998,1730945445486,-500.0,0.00021917,2]
[341514999,1730945445497,-500.0,0.00021917,2]
[341515000,1730945445506,-527.06515848,0.00021917,2]
[341515001,1730945445515,-500.0,0.00021917,2]
[341515002,1730945445525,-500.0,0.00021917,2]
[341515003,1730945445534,-500.0,0.00021917,2]
[341515004,1730945445544,-500.0,0.00021917,2]
[341515005,1730945445554,-500.0,0.00021917,2]
[341515006,1730945445564,-500.0,0.00021917,2]
[341515007,1730945445573,-442.44509405,0.00021917,2]
[341515008,1730945445583,-500.0,0.00021917,2]
[341515009,1730945445592,-507.34683345,0.00021917,2]
[341515010,1730945445602,-500.0,0.00021917,2]
[341515011,1730945445612,-500.0,0.00021917,2]
[341515012,1730945445621,-200.0,0.00021917,2]
[341515013,1730945445630,-503.53045381,0.00021917,2]
[341515014,1730945445640,-506.5147356,0.00021917,2]
[341515015,1730945445650,-505.42013535,0.00021917,2]
[341515016,1730945445659,-500.0,0.00021917,2]
[341515017,1730945445668,-500.0,0.00021917,2]
[341515018,1730945445678,-500.0,0.00021917,2]
[341515019,1730945445688,-505.43017259,0.00021917,2]
[341515020,1730945445697,-500.0,0.00021917,2]
[341515021,1730945445707,-500.0,0.00021917,2]
[341515022,1730945445716,-242.14849133,0.00021917,2]
[341515023,1730945445726,-208.76905054,0.00021917,2]
[341515024,1730945445736,-512.78990256,0.00021917,2]
[341515025,1730945445746,-500.0,0.00021917,2]
[341515026,1730945445755,-500.0,0.00021917,2]
[341515027,1730945445764,-239.60301985,0.00021917,2]
[341515028,1730945445774,-509.54024903,0.00021917,2]
[341515029,1730945445783,-500.0,0.00021917,2]
[341515030,1730945445793,-991.19813038,0.00021917,2]
[341515031,1730945445803,-500.0,0.00021917,2]
[341515032,1730945445813,-500.0,0.00021917,2]
[341515033,1730945445823,-500.0,0.00021917,2]
[341515034,1730945445833,-506.68341412,0.00021917,2]
[341515035,1730945445843,-500.0,0.00021917,2]
[341515036,1730945445853,-504.47624706,0.00021917,2]
[341515037,1730945445863,-511.47109086,0.00021917,2]
[341515038,1730945445873,-216.96283164,0.00021917,2]
[341515039,1730945445883,-505.32798691,0.00021917,2]
[341515040,1730945445893,-506.47391126,0.00021917,2]
[341515041,1730945445903,-500.0,0.00021917,2]
[341515042,1730945445912,-606.75429969,0.00021917,2]
[341515043,1730945445921,-500.0,0.00021917,2]
[341515044,1730945445931,-500.0,0.00021917,2]
[341515045,1730945445940,-500.0,0.00021917,2]
[341515046,1730945445950,-500.0,0.00021917,2]
[341515049,1730945445960,-500.0,0.00021917,2]
[341515051,1730945445970,-500.0,0.00021917,2]
[341515054,1730945445980,-500.0,0.00021917,2]
[341515056,1730945445991,-500.0,0.00021917,2]
[341515057,1730945446001,-504.69682129,0.00021917,2]
[341515058,1730945446010,-500.0,0.00021917,2]
[341515059,1730945446020,-500.0,0.00021917,2]
[341515060,1730945446030,-500.0,0.00021917,2]
[341515061,1730945446040,-500.0,0.00021917,2]
[341515062,1730945446050,-500.0,0.00021917,2]
[341515063,1730945446060,-500.0,0.00021917,2]
[341515064,1730945446069,-500.0,0.00021917,2]
[341515065,1730945446079,-509.49550452,0.00021917,2]
[341515066,1730945446089,-500.0,0.00021917,2]
[341515067,1730945446098,-500.0,0.00021917,2]
[341515068,1730945446109,-502.77919893,0.00021917,2]
[341515069,1730945446119,-505.70469577,0.00021917,2]
[341515070,1730945446129,-500.0,0.00021917,2]
[341515071,1730945446138,-500.0,0.00021917,2]
[341515072,1730945446148,-500.0,0.00021917,2]
[341515073,1730945446158,-500.0,0.00021917,2]
[341515074,1730945446167,-500.0,0.00021917,2]
[341515075,1730945446178,-500.0,0.00021917,2]
[341515076,1730945446187,-500.0,0.00021917,2]
[341515077,1730945446197,-504.25590843,0.00021917,2]
[341515078,1730945446206,-500.0,0.00021917,2]
[341515080,1730945446216,-500.0,0.00021917,2]
[341515082,1730945446226,-607.51221037,0.00021917,2]
[341515083,1730945446236,-500.0,0.00021917,2]
[341515084,1730945446246,-500.0,0.00021917,2]
[341515085,1730945446256,-500.0,0.00021917,2]
[341515086,1730945446266,-500.0,0.00021917,2]
[341515087,1730945446276,-500.0,0.00021917,2]
[341515088,1730945446288,-500.0,0.00021917,2]
[341515089,1730945446298,-500.0,0.00021917,2]
[341515090,1730945446310,-500.0,0.00021917,2]
[341515091,1730945446321,-504.76866241,0.00021917,2]
[341515092,1730945446331,-500.0,0.00021917,2]
[341515093,1730945446341,-510.33369887,0.00021917,2]
[341515094,1730945446350,-500.0,0.00021917,2]
[341515095,1730945446360,-500.0,0.00021917,2]
[341515096,1730945446370,-500.0,0.00021917,2]
[341515097,1730945446381,-504.85978835,0.00021917,2]
[341515098,1730945446390,-500.0,0.00021917,2]
[341515099,1730945446400,-514.25667547,0.00021917,2]
[341515100,1730945446410,-500.0,0.00021917,2]
[341515101,1730945446419,-535.97085528,0.00021917,2]
[341515102,1730945446429,-500.0,0.00021917,2]
[341515103,1730945446438,-500.0,0.00021917,2]
[341515104,1730945446448,-512.6244947,0.00021917,2]
[341515105,1730945446459,-508.62775503,0.00021917,2]
[341515106,1730945446469,-500.0,0.00021917,2]
[341515107,1730945446479,-500.0,0.00021917,2]
[341515108,1730945446491,-523.41446489,0.00021917,2]
[341515109,1730945446501,-500.0,0.00021917,2]
[341515110,1730945446511,-511.38883022,0.00021917,2]
[341515111,1730945446520,-500.0,0.00021917,2]
[341515112,1730945446530,-513.26351916,0.00021917,2]
[341515114,1730945446539,-500.0,0.00021917,2]
[341515115,1730945446549,-500.0,0.00021917,2]
[341515117,1730945446558,-3765.94,0.00021917,2]
[341515118,1730945446568,-500.0,0.00021917,2]
[341515119,1730945446577,-500.0,0.00021917,2]
[341515120,1730945446587,-500.0,0.00021917,2]
[341515121,1730945446597,-986.4,0.00021917,2]
[341515122,1730945446607,-500.0,0.00021917,2]
[341515123,1730945446617,-500.0,0.00021917,2]
[341515124,1730945446627,-517.89803201,0.00021917,2]
[341515125,1730945446637,-500.0,0.00021917,2]
[341515126,1730945446647,-502.05343284,0.00021917,2]
[341515127,1730945446657,-967.02,0.00021917,2]
[341515128,1730945446667,-500.0,0.00021917,2]
[341515129,1730945446676,-500.0,0.00021917,2]
[341515130,1730945446686,-258.73867246,0.00021917,2]
[341515131,1730945446695,-500.0,0.00021917,2]
[341515132,1730945446705,-500.0,0.00021917,2]
[341515133,1730945446772,-500.0,0.00021917,2]
[341515134,1730945446781,-500.0,0.00021917,2]
[341515135,1730945446790,-586.65,0.00021917,2]
[341515136,1730945446798,-500.0,0.00021917,2]
[341515137,1730945446807,-512.19053629,0.00021917,2]
[341515138,1730945446816,-500.0,0.00021917,2]
[341515139,1730945446824,-626.71493634,0.00021917,2]
[341515140,1730945446832,-506.8173543,0.00021917,2]
[341515141,1730945446841,-500.0,0.00021917,2]
[341515142,1730945446850,-500.0,0.00021917,2]
[341515143,1730945446858,-514.93599484,0.00021917,2]
[341515144,1730945446867,-500.0,0.00021917,2]
[341515145,1730945446875,-500.0,0.00021917,2]
[341515146,1730945446883,-504.938067,0.00021917,2]
[341515147,1730945446891,-500.0,0.00021917,2]
[341515148,1730945446899,-500.0,0.00021917,2]
[341515149,1730945446907,-500.0,0.00021917,2]
[341515150,1730945446915,-500.0,0.00021917,2]
[341515151,1730945446923,-500.0,0.00021917,2]
[341515152,1730945446931,-461.5040756,0.00021917,2]
[341515153,1730945446940,-500.0,0.00021917,2]
[341515154,1730945446947,-500.0,0.00021917,2]
[341515155,1730945446956,-500.0,0.00021917,2]
[341515156,1730945446964,-500.0,0.00021917,2]
[341515157,1730945446973,-500.0,0.00021917,2]
[341515158,1730945446981,-500.0,0.00021917,2]
[341515159,1730945446994,-502.13542719,0.00021917,2]
[341515160,1730945447002,-513.21890308,0.00021917,2]
[341515161,1730945447011,-504.3752694,0.00021917,2]
[341515162,1730945447020,-507.39771301,0.00021917,2]
[341515163,1730945447029,-500.0,0.00021917,2]
[341515164,1730945447038,-502.79513207,0.00021917,2]
[341515165,1730945447047,-500.0,0.00021917,2]
[341515166,1730945447056,-500.0,0.00021917,2]
[341515167,1730945447064,-511.47318858,0.00021917,2]
[341515168,1730945447072,-500.0,0.00021917,2]
[341515169,1730945447081,-500.0,0.00021917,2]
[341515170,1730945447090,-500.0,0.00021917,2]
[341515171,1730945447098,-1872.14,0.00021917,2]
[341515172,1730945447105,-500.0,0.00021917,2]
[341515173,1730945447115,-500.0,0.00021917,2]
[341515174,1730945447124,-504.64647888,0.00021917,2]
[341515175,1730945447133,-500.0,0.00021917,2]
[341515176,1730945447141,-504.68606104,0.00021917,2]
[341515177,1730945447149,-500.0,0.00021917,2]
[341515178,1730945447157,-500.0,0.00021917,2]
[341515179,1730945447165,-501.75609082,0.00021917,2]
[341515180,1730945447174,-500.0,0.00021917,2]
[341515181,1730945447183,-509.48573876,0.00021917,2]
[341515182,1730945447192,-505.83140366,0.00021917,2]
[341515183,1730945447201,-151.64753263,0.00021917,2]
[341515184,1730945447210,-503.20260007,0.00021917,2]
[341515185,1730945447218,-500.0,0.00021917,2]
[341515186,1730945447226,-1847.56,0.00021917,2]
[341515187,1730945447237,-506.26384719,0.00021917,2]
[341515188,1730945447245,-500.0,0.00021917,2]
[341515189,1730945447254,-500.0,0.00021917,2]
[341515190,1730945447263,-500.0,0.00021917,2]
[341515191,1730945447273,-500.0,0.00021917,2]
[341515192,1730945447280,-500.0,0.00021917,2]
[341515193,1730945447287,-500.0,0.00021917,2]
[341515194,1730945447296,-500.0,0.00021917,2]
[341515195,1730945447305,-522.9897827,0.00021917,2]
[341515196,1730945447312,-500.0,0.00021917,2]
[341515197,1730945447319,-500.0,0.00021917,2]
[341515198,1730945447325,-500.0,0.00021917,2]
[341515199,1730945447332,-500.0,0.00021917,2]
[341515200,1730945447339,-8863.49,0.00021917,2]
[341515201,1730945447347,-2223.43,0.00021917,2]
[341515202,1730945447354,-500.0,0.00021917,2]
[341515203,1730945447363,-500.0,0.00021917,2]
[341515204,1730945447373,-500.0,0.00021917,2]
[341515205,1730945447382,-435.44099612,0.00021917,2]
[341515206,1730945447397,-539.20066361,0.00021917,2]
[341515207,1730945447412,-503.84107763,0.00021917,2]
[341515208,1730945447425,-506.68264356,0.00021917,2]
[341515209,1730945447437,-500.0,0.00021917,2]
[341515210,1730945447450,-539.76132891,0.00021917,2]
[341515211,1730945447464,-500.0,0.00021917,2]
[341515212,1730945447479,-500.0,0.00021917,2]
[341515213,1730945447494,-527.48033863,0.00021917,2]
[341515214,1730945447508,-500.0,0.00021917,2]
[341515215,1730945447522,-500.0,0.00021917,2]
[341515216,1730945447535,-504.6693279,0.00021917,2]
[341515217,1730945447549,-500.0,0.00021917,2]
[341515218,1730945447563,-500.0,0.00021917,2]
[341515219,1730945447575,-503.57551518,0.00021917,2]
[341515220,1730945447587,-500.0,0.00021917,2]
[341515221,1730945447597,-500.0,0.00021917,2]
[341515222,1730945447609,-504.26503445,0.00021917,2]
[341515223,1730945447621,-672.8,0.00021917,2]
[341515224,1730945447634,-551.55,0.00021917,2]
[341515225,1730945447648,-500.0,0.00021917,2]
[341515226,1730945447661,-517.51,0.00021917,2]
[341515227,1730945447675,-517.00269963,0.00021917,2]
[341515228,1730945447689,-500.0,0.00021917,2]
[341515229,1730945447699,-303.99836493,0.00021917,2]
[341515230,1730945447710,-500.0,0.00021917,2]
[341515231,1730945447721,-500.0,0.00021917,2]
[341515232,1730945447734,-501.29827684,0.00021917,2]
[341515233,1730945447750,-512.67077031,0.00021917,2]
[341515234,1730945447760,-500.0,0.00021917,2]
[341515235,1730945447773,-500.0,0.00021917,2]
[341515236,1730945447787,-500.0,0.00021917,2]
[341515237,1730945447797,-500.0,0.00021917,2]
[341515238,1730945447808,-506.15187083,0.00021917,2]
[341515239,1730945447821,-500.0,0.00021917,2]
[341515240,1730945447832,-500.0,0.00021917,2]
[341515241,1730945447843,-500.0,0.00021917,2]
[341515242,1730945447854,-456.41565898,0.00021917,2]
[341515243,1730945447866,-543.14,0.00021917,2]
[341515244,1730945447878,-500.0,0.00021917,2]
[341515245,1730945447891,-500.0,0.00021917,2]
[341515246,1730945447902,-500.0,0.00021917,2]
[341515247,1730945447915,-500.0,0.00021917,2]
[341515248,1730945447927,-507.6237965,0.00021917,2]
[341515249,1730945447939,-500.0,0.00021917,2]
[341515250,1730945447951,-505.41564549,0.00021917,2]
[341515251,1730945447962,-500.0,0.00021917,2]
[341515252,1730945447974,-500.0,0.00021917,2]
[341515253,1730945447987,-500.0,0.00021917,2]
[341515254,1730945447999,-500.0,0.00021917,2]
[341515255,1730945448011,-500.0,0.00021917,2]
[341515256,1730945448022,-500.0,0.00021917,2]
[341515257,1730945448034,-500.0,0.00021917,2]
[341515258,1730945448045,-500.0,0.00021917,2]
[341515259,1730945448057,-643.73932206,0.00021917,2]
[341515260,1730945448069,-500.0,0.00021917,2]
[341515261,1730945448081,-547.96,0.00021917,2]
[341515262,1730945448093,-500.26529204,0.00021917,2]
[341515263,1730945448105,-767.31,0.00021917,2]
[341515264,1730945448118,-286.4766643,0.00021917,2]
[341515265,1730945448130,-500.0,0.00021917,2]
[341515266,1730945448142,-500.0,0.00021917,2]
[341515267,1730945448155,-500.0,0.00021917,2]
[341515268,1730945448168,-500.0,0.00021917,2]
[341515269,1730945448179,-506.44842055,0.00021917,2]
[341515270,1730945448191,-500.0,0.00021917,2]
[341515271,1730945448202,-500.0,0.00021917,2]
[341515272,1730945448214,-500.65746364,0.00021917,2]
[341515273,1730945448226,-500.0,0.00021917,2]
[341515274,1730945448238,-500.0,0.00021917,2]
[341515275,1730945448249,-500.0,0.00021917,2]
[341515276,1730945448261,-227.20481778,0.00021917,2]
[341515277,1730945448273,-500.0,0.00021917,2]
[341515278,1730945448303,-500.0,0.00021917,2]
[341515279,1730945448433,-500.0,0.00021917,2]
[341515280,1730945448464,-500.0,0.00021917,2]
[341515281,1730945448474,-506.21811253,0.00021917,2]
[341515282,1730945448484,-500.0,0.00021917,2]
[341515283,1730945448495,-3923.36,0.00021917,2]
[341515284,1730945448505,-500.0,0.00021917,2]
[341515285,1730945448515,-166.666666,0.00021918,2]
[341515286,1730945448524,-1271.6909998,0.00021918,7]
[341515287,1730945448534,-151.0,0.00021918,7]
[341515288,1730945448543,-151.0,0.00021918,7]
[341515289,1730945448554,-327.31192489,0.00021954,2]
[341515290,1730945448564,-327.31192489,0.00022091,2]
[341515291,1730945448573,-152579.07280326,0.00022171,2]
[341515292,1730945448583,-151.0,0.00022171,7]
[341515293,1730945448592,-151.0,0.00022171,7]
[341515294,1730945448603,-151.0,0.00022171,7]
[341515295,1730945448612,-151.0,0.00022171,7]
[341515296,1730945448621,-151.0,0.00022171,3]
[341515297,1730945448630,-151.0,0.00022171,7]
[341515298,1730945448640,-151.0,0.00022171,7]
[341515299,1730945448649,-670.828154,0.00022171,7]
[341515300,1730945448659,-670.828154,0.00022171,7]
[341515301,1730945448668,-151.0,0.00022171,7]
[341515302,1730945448677,-151.0,0.00022171,7]
[341515303,1730945448686,-151.0,0.00022171,7]
[341515304,1730945448696,-151.0,0.00022171,7]
[341515305,1730945448705,-178.014018,0.00022171,7]
[341515306,1730945448715,-152.155928,0.00022171,7]
[341515307,1730945448724,-151.0,0.00022171,7]
[341515308,1730945448734,-151.0,0.00022171,7]
[341515309,1730945448745,-151.0,0.00022171,7]